fUST/lending_fUST_20240919
["ID","MTS","AMOUNT","RATE_DAILY","PERIOD"]
[338570622,1726740558430,-500.0,0.00016405,2]
[338570623,1726740558452,-500.0,0.00016405,2]
[338570624,1726740558476,-500.0,0.00016405,2]
[338570625,1726740558500,-500.0,0.00016405,2]
[338570626,1726740558522,-500.0,0.00016405,2]
[338570627,1726740558544,-500.0,0.00016405,2]
[338570628,1726740558567,-189.30613086,0.00016405,2]
[338570629,1726740558588,-500.0,0.00016405,2]
[338570630,1726740558610,-500.0,0.00016405,2]
[338570631,1726740558633,-500.0,0.00016405,2]
[338570632,1726740558655,-500.0,0.00016405,2]
[338570633,1726740558677,-500.0,0.00016405,2]
[338570634,1726740558701,-500.0,0.00016405,2]
[338570635,1726740558723,-500.0,0.00016405,2]
[338570636,1726740558745,-207.57329827,0.00016405,2]
[338570637,1726740558767,-500.0,0.00016405,2]
[338570638,1726740558789,-500.0,0.00016405,2]
[338570639,1726740558810,-500.0,0.00016405,2]
[338570640,1726740558831,-500.0,0.00016405,2]
[338570641,1726740558854,-500.0,0.00016405,2]
[338570642,1726740558877,-500.0,0.00016405,2]
[338570643,1726740558900,-500.0,0.00016405,2]
[338570644,1726740558922,-500.0,0.00016405,2]
[338570645,1726740558944,-500.0,0.00016405,2]
[338570646,1726740558966,-500.0,0.00016405,2]
[338570647,1726740558989,-500.0,0.00016405,2]
[338570648,1726740559011,-500.0,0.00016405,2]
[338570649,1726740559037,-500.0,0.00016405,2]
[338570650,1726740559059,-500.0,0.00016405,2]
[338570651,1726740559081,-500.0,0.00016405,2]
[338570652,1726740559104,-500.0,0.00016405,2]
[338570653,1726740559128,-500.0,0.00016405,2]
[338570654,1726740559151,-500.0,0.00016405,2]
[338570655,1726740559174,-500.0,0.00016405,2]
[338570656,1726740559197,-200.0,0.00016405,2]
[338570657,1726740559222,-500.0,0.00016405,2]
[338570658,1726740559245,-500.0,0.00016405,2]
[338570659,1726740559267,-500.0,0.00016405,2]
[338570660,1726740559290,-500.0,0.00016405,2]
[338570661,1726740559315,-500.0,0.00016405,2]
[338570662,1726740559337,-500.0,0.00016405,2]
[338570663,1726740559361,-500.0,0.00016405,2]
[338570664,1726740559383,-500.0,0.00016405,2]
[338570665,1726740559406,-500.0,0.00016405,2]
[338570666,1726740559431,-500.0,0.00016405,2]
[338570667,1726740559454,-500.0,0.00016405,2]
[338570668,1726740559480,-500.0,0.00016405,2]
[338570669,1726740559503,-500.0,0.00016405,2]
[338570670,1726740559528,-300.14463348,0.00016405,2]
[338570671,1726740559551,-500.0,0.00016405,2]
[338570672,1726740559576,-500.0,0.00016405,2]
[338570673,1726740559599,-595.24212191,0.00016405,2]
[338570674,1726740559621,-595.24212191,0.00016405,2]
[338570675,1726740559643,-500.0,0.00016405,2]
[338570676,1726740559665,-595.24212191,0.00016405,2]
[338570677,1726740559686,-500.0,0.00016405,2]
[338570678,1726740559708,-595.24212191,0.00016405,2]
[338570679,1726740559729,-500.0,0.00016405,2]
[338570680,1726740559750,-500.0,0.00016405,2]
[338570681,1726740559772,-595.24212191,0.00016405,2]
[338570682,1726740559793,-595.24212191,0.00016405,2]
[338570683,1726740559814,-500.0,0.00016405,2]
[338570684,1726740559836,-595.24212191,0.00016405,2]
[338570685,1726740559859,-500.0,0.00016405,2]
[338570686,1726740559882,-595.24212191,0.00016405,2]
[338570687,1726740559903,-500.0,0.00016405,2]
[338570688,1726740559924,-595.24212191,0.00016405,2]
[338570689,1726740559946,-500.0,0.00016405,2]
[338570690,1726740559968,-595.24212191,0.00016405,2]
[338570691,1726740559991,-500.0,0.00016405,2]
[338570692,1726740560013,-595.24212191,0.00016405,2]
[338570693,1726740560038,-500.0,0.00016405,2]
[338570694,1726740560060,-500.0,0.00016405,2]
[338570695,1726740560081,-595.24212191,0.00016405,2]
[338570696,1726740560103,-595.24212191,0.00016405,2]
[338570697,1726740560126,-632.07444966,0.00016405,2]
[338570698,1726740560149,-595.24212191,0.00016405,2]
[338570699,1726740560170,-500.0,0.00016405,2]
[338570700,1726740560192,-595.24212191,0.00016405,2]
[338570701,1726740560215,-500.0,0.00016405,2]
[338570702,1726740560237,-595.24212191,0.00016405,2]
[338570703,1726740560259,-500.0,0.00016405,2]
[338570704,1726740560281,-595.24212191,0.00016405,2]
[338570705,1726740560302,-500.0,0.00016405,2]
[338570706,1726740560324,-595.24212191,0.00016405,2]
[338570707,1726740560346,-500.0,0.00016405,2]
[338570708,1726740560370,-595.24212191,0.00016405,2]
[338570709,1726740560391,-500.0,0.00016405,2]
[338570710,1726740560414,-500.0,0.00016405,2]
[338570711,1726740560437,-595.24212191,0.00016405,2]
[338570712,1726740560459,-500.0,0.00016405,2]
[338570713,1726740560485,-595.24212191,0.00016405,2]
[338570714,1726740560506,-595.24212191,0.00016405,2]
[338570715,1726740560527,-500.0,0.00016405,2]
[338570716,1726740560550,-595.24212191,0.00016405,2]
[338570717,1726740560574,-595.24212191,0.00016405,2]
[338570718,1726740560596,-595.24212191,0.00016405,2]
[338570719,1726740560617,-595.24212191,0.00016405,2]
[338570720,1726740560649,-595.24212191,0.00016405,2]
[338570721,1726740560669,-500.0,0.00016405,2]
[338570722,1726740560690,-595.24212191,0.00016405,2]
[338570723,1726740560711,-500.0,0.00016405,2]
[338570724,1726740560733,-595.24212191,0.00016405,2]
[338570725,1726740560753,-500.0,0.00016405,2]
[338570726,1726740560774,-595.24212191,0.00016405,2]
[338570727,1726740560795,-500.0,0.00016405,2]
[338570728,1726740560819,-595.24212191,0.00016405,2]
[338570729,1726740560840,-595.24212191,0.00016405,2]
[338570730,1726740560862,-500.0,0.00016405,2]
[338570731,1726740560884,-595.24212191,0.00016405,2]
[338570732,1726740560906,-595.24212191,0.00016405,2]
[338570733,1726740560928,-595.24212191,0.00016405,2]
[338570734,1726740560952,-595.24212191,0.00016405,2]
[338570735,1726740560974,-595.24212191,0.00016405,2]
[338570736,1726740560996,-596.18695067,0.00016405,2]
[338570737,1726740561023,-596.18695067,0.00016405,2]
[338570738,1726740561045,-596.18695067,0.00016405,2]
[338570739,1726740561068,-596.18695067,0.00016405,2]
[338570740,1726740561091,-596.18695067,0.00016405,2]
[338570741,1726740561113,-596.18695067,0.00016405,2]
[338570742,1726740561137,-596.18695067,0.00016405,2]
[338570743,1726740561160,-596.18695067,0.00016405,2]
[338570744,1726740561183,-596.18695067,0.00016405,2]
[338570745,1726740561208,-596.18695067,0.00016405,2]
[338570746,1726740561231,-596.18695067,0.00016405,2]
[338570747,1726740561255,-596.18695067,0.00016405,2]
[338570748,1726740561277,-596.18695067,0.00016405,2]
[338570749,1726740561299,-596.18695067,0.00016405,2]
[338570750,1726740561321,-596.18695067,0.00016405,2]
[338570751,1726740561344,-596.18695067,0.00016405,2]
[338570752,1726740561368,-596.18695067,0.00016405,2]
[338570753,1726740561392,-596.18695067,0.00016405,2]
[338570754,1726740561416,-596.18695067,0.00016405,2]
[338570755,1726740561439,-596.18695067,0.00016405,2]
[338570756,1726740561463,-596.18695067,0.00016405,2]
[338570757,1726740561490,-596.18695067,0.00016405,2]
[338570758,1726740561512,-596.18695067,0.00016405,2]
[338570759,1726740561536,-19621.99379054,0.00016406,2]
[338570760,1726740568107,-596.18695066,0.00016405,2]
[338570761,1726740568141,-596.18695066,0.00016405,2]
[338570762,1726740568164,-596.18695066,0.00016405,2]
[338570763,1726740568187,-596.18695066,0.00016405,2]
[338570764,1726740568209,-12429.64439171,0.00016406,2]
[338570801,1726740632576,-300.0,0.00016405,2]
[338570803,1726740632587,-300.0,0.00016405,2]
[338570806,1726740632597,-596.18695065,0.00016405,2]
[338570808,1726740632608,-26291.7683954,0.00016406,2]
[338570843,1726740638650,-258166.52221935,0.00016406,2]
[338570844,1726740638660,-19063.5865766,0.00016406,2]
[338570845,1726740638670,-79127.4821993,0.00016408,2]
[338570846,1726740638679,-14297.6899325,0.00016408,2]
[338570847,1726740638689,-19063.5865766,0.00016418,2]
[338570848,1726740638698,-1000.0,0.00016427,2]
[338570849,1726740638708,-1084.22700737,0.00016427,2]
[338570850,1726740638718,-42893.0697974,0.00016428,2]
[338570851,1726740638728,-612.92299453,0.00016437,2]
[338570852,1726740638737,-500.0,0.00016437,2]
[338570853,1726740638747,-159.75004681,0.00016437,2]
[338570854,1726740638756,-456.68486328,0.00016437,2]
[338570855,1726740638765,-500.0,0.00016437,2]
[338570856,1726740638774,-230.51817643,0.00016437,2]
[338570857,1726740638783,-500.0,0.00016437,2]
[338570858,1726740638792,-500.0,0.00016437,2]
[338570859,1726740638801,-500.0,0.00016437,2]
[338570860,1726740638810,-500.0,0.00016437,2]
[338570861,1726740638819,-500.0,0.00016437,2]
[338570862,1726740638829,-500.0,0.00016437,2]
[338570863,1726740638838,-460.74156308,0.00016437,2]
[338570864,1726740638848,-500.0,0.00016438,2]
[338570865,1726740638857,-500.0,0.00016438,2]
[338570866,1726740638867,-506.13118977,0.00016438,2]
[338570867,1726740638876,-500.0,0.00016438,2]
[338570868,1726740638885,-500.0,0.00016438,2]
[338570869,1726740638895,-500.0,0.00016438,2]
[338570870,1726740638904,-500.0,0.00016438,2]
[338570871,1726740638913,-500.0,0.00016438,2]
[338570872,1726740638922,-523.41655012,0.00016438,2]
[338570873,1726740638931,-500.0,0.00016438,2]
[338570874,1726740638941,-500.0,0.00016438,2]
[338570875,1726740638951,-500.0,0.00016438,2]
[338570876,1726740638960,-500.0,0.00016438,2]
[338570877,1726740638969,-500.0,0.00016438,2]
[338570878,1726740638979,-500.0,0.00016438,2]
[338570879,1726740638989,-500.0,0.00016438,2]
[338570880,1726740638998,-949.74,0.00016438,2]
[338570881,1726740639007,-500.29991761,0.00016438,2]
[338570882,1726740639016,-500.0,0.00016438,2]
[338570883,1726740639026,-500.0,0.00016438,2]
[338570884,1726740639035,-500.0,0.00016438,2]
[338570885,1726740639044,-401.66421655,0.00016438,2]
[338570886,1726740639054,-500.0,0.00016438,2]
[338570887,1726740639063,-654.45,0.00016438,2]
[338570888,1726740639072,-500.0,0.00016438,2]
[338570889,1726740639082,-500.0,0.00016438,2]
[338570890,1726740639092,-1068.34,0.00016438,2]
[338570891,1726740639102,-294.00865326,0.00016438,2]
[338570892,1726740639113,-500.0,0.00016438,2]
[338570893,1726740639123,-1371.04,0.00016438,2]
[338570894,1726740639133,-500.0,0.00016438,2]
[338570895,1726740639143,-500.0,0.00016438,2]
[338570896,1726740639154,-500.0,0.00016438,2]
[338570897,1726740639222,-500.0,0.00016438,2]
[338570898,1726740639232,-500.0,0.00016438,2]
[338570899,1726740639242,-500.0,0.00016438,2]
[338570900,1726740639251,-565.56,0.00016438,2]
[338570901,1726740639260,-500.0,0.00016438,2]
[338570902,1726740639270,-500.0,0.00016438,2]
[338570903,1726740639278,-500.0,0.00016438,2]
[338570904,1726740639288,-500.0,0.00016438,2]
[338570905,1726740639297,-500.0,0.00016438,2]
[338570906,1726740639306,-500.0,0.00016438,2]
[338570907,1726740639317,-500.0,0.00016438,2]
[338570908,1726740639326,-500.0,0.00016438,2]
[338570909,1726740639337,-500.0,0.00016438,2]
[338570910,1726740639346,-500.0,0.00016438,2]
[338570911,1726740639356,-500.0,0.00016438,2]
[338570912,1726740639366,-500.0,0.00016438,2]
[338570913,1726740639375,-508.09045128,0.00016438,2]
[338570914,1726740639385,-500.0,0.00016438,2]
[338570915,1726740639394,-213.97306972,0.00016438,2]
[338570916,1726740639403,-500.0,0.00016438,2]
[338570917,1726740639412,-803.7,0.00016438,2]
[338570918,1726740639421,-500.0,0.00016438,2]
[338570919,1726740639431,-500.0,0.00016438,2]
[338570920,1726740639441,-500.0,0.00016438,2]
[338570921,1726740639450,-543.95,0.00016438,2]
[338570922,1726740639461,-500.0,0.00016438,2]
[338570923,1726740639469,-500.0,0.00016438,2]
[338570924,1726740639479,-500.0,0.00016438,2]
[338570925,1726740639488,-500.61681258,0.00016438,2]
[338570926,1726740639497,-500.0,0.00016438,2]
[338570927,1726740639506,-573.61879901,0.00016438,2]
[338570928,1726740639516,-500.0,0.00016438,2]
[338570929,1726740639526,-500.0,0.00016438,2]
[338570930,1726740639536,-500.0,0.00016438,2]
[338570931,1726740639546,-1662.48,0.00016438,2]
[338570932,1726740639558,-671.86,0.00016438,2]
[338570933,1726740639567,-500.0,0.00016438,2]
[338570934,1726740639576,-500.0,0.00016438,2]
[338570935,1726740639585,-500.0,0.00016438,2]
[338570936,1726740639595,-500.0,0.00016438,2]
[338570937,1726740639604,-560.77,0.00016438,2]
[338570938,1726740639615,-500.0,0.00016438,2]
[338570939,1726740639626,-865.34,0.00016438,2]
[338570940,1726740639636,-500.0,0.00016438,2]
[338570941,1726740639648,-500.0,0.00016438,2]
[338570942,1726740639657,-500.0,0.00016438,2]
[338570943,1726740639667,-500.0,0.00016438,2]
[338570944,1726740639676,-3295.12,0.00016438,2]
[338570945,1726740639685,-500.0,0.00016438,2]
[338570946,1726740639694,-500.0,0.00016438,2]
[338570947,1726740639704,-500.0,0.00016438,2]
[338570948,1726740639713,-948.97,0.00016438,2]
[338570949,1726740639723,-500.0,0.00016438,2]
[338570950,1726740639732,-500.0,0.00016438,2]
[338570951,1726740639742,-974.21,0.00016438,2]
[338570952,1726740639751,-500.0,0.00016438,2]
[338570953,1726740639763,-500.0,0.00016438,2]
[338570954,1726740639774,-362.13980169,0.00016438,2]
[338570955,1726740639786,-500.0,0.00016438,2]
[338570956,1726740639796,-500.0,0.00016438,2]
[338570957,1726740639805,-501.13,0.00016438,2]
[338570958,1726740639815,-500.0,0.00016438,2]
[338570959,1726740639826,-500.0,0.00016438,2]
[338570960,1726740639836,-1043.35,0.00016438,2]
[338570961,1726740639847,-500.0,0.00016438,2]
[338570962,1726740639857,-500.0,0.00016438,2]
[338570963,1726740639867,-661.81,0.00016438,2]
[338570964,1726740639878,-500.30078167,0.00016438,2]
[338570965,1726740639889,-500.0,0.00016438,2]
[338570966,1726740639900,-500.0,0.00016438,2]
[338570967,1726740639911,-500.0,0.00016438,2]
[338570968,1726740639921,-500.0,0.00016438,2]
[338570969,1726740639932,-500.0,0.00016438,2]
[338570970,1726740639943,-500.0,0.00016438,2]
[338570971,1726740639954,-500.0,0.00016438,2]
[338570972,1726740639964,-500.0,0.00016438,2]
[338570973,1726740639974,-500.0,0.00016438,2]
[338570974,1726740639983,-500.0,0.00016438,2]
[338570975,1726740639992,-500.0,0.00016438,2]
[338570976,1726740640002,-697.62,0.00016438,2]
[338570977,1726740640011,-500.0,0.00016438,2]
[338570978,1726740640021,-2324.75,0.00016438,2]
[338570979,1726740640030,-500.0,0.00016438,2]
[338570980,1726740640040,-1153.24,0.00016438,2]
[338570981,1726740640051,-854.21,0.00016438,2]
[338570982,1726740640060,-500.0,0.00016438,2]
[338570983,1726740640070,-500.0,0.00016438,2]
[338570985,1726740640079,-500.0,0.00016438,2]
[338570986,1726740640088,-500.0,0.00016438,2]
[338570987,1726740640098,-500.0,0.00016438,2]
[338570989,1726740640107,-594.06,0.00016438,2]
[338570990,1726740640116,-1123.32,0.00016438,2]
[338570991,1726740640126,-1204.11,0.00016438,2]
[338570992,1726740640135,-841.72,0.00016438,2]
[338570993,1726740640144,-513.62786954,0.00016438,2]
[338570994,1726740640154,-1003.28,0.00016438,2]
[338570995,1726740640163,-500.0,0.00016438,2]
[338570996,1726740640172,-1282.13,0.00016438,2]
[338570997,1726740640182,-609.28,0.00016438,2]
[338570998,1726740640191,-1543.84,0.00016438,2]
[338570999,1726740640201,-550.19737991,0.00016438,2]
[338571000,1726740640211,-1151.05,0.00016438,2]
[338571001,1726740640220,-500.0,0.00016438,2]
[338571002,1726740640229,-500.0,0.00016438,2]
[338571003,1726740640238,-500.0,0.00016438,2]
[338571004,1726740640248,-500.0,0.00016438,2]
[338571005,1726740640257,-850.95,0.00016438,2]
[338571006,1726740640267,-500.0,0.00016438,2]
[338571007,1726740640276,-500.0,0.00016438,2]
[338571008,1726740640285,-500.0,0.00016438,2]
[338571009,1726740640294,-500.44663247,0.00016438,2]
[338571010,1726740640303,-573.41,0.00016438,2]
[338571011,1726740640312,-798.1,0.00016438,2]
[338571012,1726740640322,-500.0,0.00016438,2]
[338571013,1726740640331,-907.63,0.00016438,2]
[338571014,1726740640340,-500.0,0.00016438,2]
[338571015,1726740640349,-1405.97,0.00016438,2]
[338571016,1726740640360,-500.0,0.00016438,2]
[338571017,1726740640370,-500.0,0.00016438,2]
[338571018,1726740640379,-720.15,0.00016438,2]
[338571019,1726740640389,-500.0,0.00016438,2]
[338571020,1726740640398,-500.0,0.00016438,2]
[338571021,1726740640408,-550.50159571,0.00016438,2]
[338571022,1726740640417,-500.0,0.00016438,2]
[338571023,1726740640427,-500.0,0.00016438,2]
[338571024,1726740640437,-500.0,0.00016438,2]
[338571025,1726740640446,-500.0,0.00016438,2]
[338571026,1726740640456,-391.98520822,0.00016438,2]
[338571027,1726740640465,-500.0,0.00016438,2]
[338571028,1726740640474,-543.35,0.00016438,2]
[338571029,1726740640483,-500.0,0.00016438,2]
[338571030,1726740640493,-500.0,0.00016438,2]
[338571031,1726740640502,-500.0,0.00016438,2]
[338571032,1726740640512,-917.37,0.00016438,2]
[338571033,1726740640522,-500.0,0.00016438,2]
[338571034,1726740640532,-1749.37,0.00016438,2]
[338571035,1726740640542,-1480.0,0.00016438,2]
[338571037,1726740640555,-500.0,0.00016438,2]
[338571038,1726740640564,-773.55,0.00016438,2]
[338571040,1726740640575,-1214.97,0.00016438,2]
[338571042,1726740640584,-556.41,0.00016438,2]
[338571043,1726740640594,-1204.95,0.00016438,2]
[338571044,1726740640604,-1291.32,0.00016438,2]
[338571045,1726740640613,-500.0,0.00016438,2]
[338571046,1726740640623,-500.0,0.00016438,2]
[338571047,1726740640632,-906.12,0.00016438,2]
[338571048,1726740640642,-500.0,0.00016438,2]
[338571049,1726740640651,-500.70581007,0.00016438,2]
[338571050,1726740640660,-500.0,0.00016438,2]
[338571051,1726740640670,-525.31822053,0.00016438,2]
[338571052,1726740640679,-500.0,0.00016438,2]
[338571053,1726740640689,-777.76,0.00016438,2]
[338571055,1726740640698,-839.56,0.00016438,2]
[338571056,1726740640708,-500.0,0.00016438,2]
[338571057,1726740640717,-500.0,0.00016438,2]
[338571058,1726740640727,-1362.74,0.00016438,2]
[338571059,1726740640736,-567.75,0.00016438,2]
[338571060,1726740640746,-605.85,0.00016438,2]
[338571061,1726740640755,-1327.2,0.00016438,2]
[338571062,1726740640764,-502.15426556,0.00016438,2]
[338571063,1726740640774,-343.87613117,0.00016438,2]
[338571064,1726740640783,-212.77,0.00016438,2]
[338571065,1726740640792,-500.0,0.00016438,2]
[338571066,1726740640802,-727.02,0.00016438,2]
[338571067,1726740640811,-816.62,0.00016438,2]
[338571068,1726740640820,-910.3,0.00016438,2]
[338571069,1726740640829,-500.0,0.00016438,2]
[338571070,1726740640838,-500.0,0.00016438,2]
[338571071,1726740640847,-909.72,0.00016438,2]
[338571072,1726740640856,-500.0,0.00016438,2]
[338571073,1726740640865,-500.0,0.00016438,2]
[338571074,1726740640874,-971.94,0.00016438,2]
[338571075,1726740640883,-500.0,0.00016438,2]
[338571076,1726740640892,-712.6,0.00016438,2]
[338571077,1726740640902,-500.0,0.00016438,2]
[338571078,1726740640911,-500.0,0.00016438,2]
[338571079,1726740640920,-500.0,0.00016438,2]
[338571080,1726740640929,-500.0,0.00016438,2]
[338571081,1726740640939,-2050.85,0.00016438,2]
[338571082,1726740640948,-830.19,0.00016438,2]
[338571083,1726740640958,-500.0,0.00016438,2]
[338571084,1726740640968,-500.0,0.00016438,2]
[338571085,1726740640977,-500.0,0.00016438,2]
[338571086,1726740640988,-500.0,0.00016438,2]
[338571087,1726740640998,-650.31,0.00016438,2]
[338571088,1726740641008,-500.0,0.00016438,2]
[338571089,1726740641019,-500.0,0.00016438,2]
[338571090,1726740641029,-500.0,0.00016438,2]
[338571091,1726740641039,-500.0,0.00016438,2]
[338571092,1726740641049,-500.0,0.00016438,2]
[338571093,1726740641059,-500.0,0.00016438,2]
[338571094,1726740641068,-500.0,0.00016438,2]
[338571095,1726740641077,-500.0,0.00016438,2]
[338571096,1726740641087,-500.0,0.00016438,2]
[338571097,1726740641096,-500.0,0.00016438,2]
[338571098,1726740641105,-770.02,0.00016438,2]
[338571099,1726740641116,-501.606519,0.00016438,2]
[338571100,1726740641125,-500.0,0.00016438,2]
[338571101,1726740641134,-500.0,0.00016438,2]
[338571102,1726740641146,-500.0,0.00016438,2]
[338571103,1726740641156,-500.0,0.00016438,2]
[338571104,1726740641165,-501.83540582,0.00016438,2]
[338571105,1726740641174,-500.0,0.00016438,2]
[338571106,1726740641183,-1394.53,0.00016438,2]
[338571107,1726740641193,-500.0,0.00016438,2]
[338571108,1726740641202,-500.0,0.00016438,2]
[338571109,1726740641213,-536.46,0.00016438,2]
[338571110,1726740641222,-500.0,0.00016438,2]
[338571111,1726740641232,-2476.0,0.00016438,2]
[338571112,1726740641241,-500.0,0.00016438,2]
[338571113,1726740641251,-500.0,0.00016438,2]
[338571114,1726740641260,-355.7588151,0.00016438,2]
[338571115,1726740641270,-500.0,0.00016438,2]
[338571116,1726740641279,-500.0,0.00016438,2]
[338571117,1726740641288,-500.0,0.00016438,2]
[338571118,1726740641297,-500.0,0.00016438,2]
[338571119,1726740641307,-500.0,0.00016438,2]
[338571120,1726740641317,-502.19,0.00016438,2]
[338571121,1726740641326,-500.0,0.00016438,2]
[338571122,1726740641335,-500.0,0.00016438,2]
[338571123,1726740641345,-715.51,0.00016438,2]
[338571124,1726740641354,-763.89,0.00016438,2]
[338571125,1726740641364,-643.66236891,0.00016438,2]
[338571126,1726740641373,-1124.74,0.00016438,2]
[338571127,1726740641382,-743.96,0.00016438,2]
[338571128,1726740641391,-1110.08,0.00016438,2]
[338571129,1726740641401,-315.86501001,0.00016438,2]
[338571130,1726740641410,-830.39,0.00016438,2]
[338571131,1726740641420,-500.0,0.00016438,2]
[338571132,1726740641429,-500.0,0.00016438,2]
[338571133,1726740641439,-500.0,0.00016438,2]
[338571134,1726740641448,-500.0,0.00016438,2]
[338571135,1726740641458,-1021.65,0.00016438,2]
[338571136,1726740641467,-500.0,0.00016438,2]
[338571137,1726740641476,-500.0,0.00016438,2]
[338571138,1726740641486,-500.0,0.00016438,2]
[338571139,1726740641496,-500.0,0.00016438,2]
[338571140,1726740641505,-500.0,0.00016438,2]
[338571141,1726740641514,-2065.09,0.00016438,2]
[338571142,1726740641523,-500.0,0.00016438,2]
[338571143,1726740641532,-500.0,0.00016438,2]
[338571144,1726740641542,-500.0,0.00016438,2]
[338571145,1726740641558,-500.0,0.00016438,2]
[338571146,1726740641568,-500.0,0.00016438,2]
[338571147,1726740641577,-500.0,0.00016438,2]
[338571148,1726740641587,-500.0,0.00016438,2]
[338571149,1726740641598,-500.0,0.00016438,2]
[338571150,1726740641607,-500.0,0.00016438,2]
[338571151,1726740641616,-500.0,0.00016438,2]
[338571152,1726740641628,-500.0,0.00016438,2]
[338571153,1726740641637,-500.0,0.00016438,2]
[338571154,1726740641646,-500.0,0.00016438,2]
[338571155,1726740641655,-1462.49,0.00016438,2]
[338571156,1726740641665,-870.22,0.00016438,2]
[338571157,1726740641674,-500.0,0.00016438,2]
[338571158,1726740641683,-500.0,0.00016438,2]
[338571159,1726740641692,-500.0,0.00016438,2]
[338571160,1726740641701,-774.77,0.00016438,2]
[338571161,1726740641712,-500.0,0.00016438,2]
[338571162,1726740641730,-565.32,0.00016438,2]
[338571163,1726740641739,-500.0,0.00016438,2]
[338571164,1726740641749,-500.0,0.00016438,2]
[338571165,1726740641759,-500.0,0.00016438,2]
[338571166,1726740641768,-415.07825703,0.00016438,2]
[338571167,1726740641777,-764.02,0.00016438,2]
[338571168,1726740641786,-500.0,0.00016438,2]
[338571169,1726740641795,-1230.82,0.00016438,2]
[338571170,1726740641806,-554.09,0.00016438,2]
[338571171,1726740641817,-695.74,0.00016438,2]
[338571172,1726740641826,-500.0,0.00016438,2]
[338571173,1726740641836,-500.0,0.00016438,2]
[338571174,1726740641846,-1222.23,0.00016438,2]
[338571175,1726740641856,-500.0,0.00016438,2]
[338571176,1726740641867,-500.0,0.00016438,2]
[338571177,1726740641876,-500.0,0.00016438,2]
[338571178,1726740641886,-570.77,0.00016438,2]
[338571179,1726740641895,-560.01,0.00016438,2]
[338571180,1726740641904,-564.23070744,0.00016438,2]
[338571181,1726740641913,-539.28773051,0.00016438,2]
[338571182,1726740641923,-500.0,0.00016438,2]
[338571183,1726740641934,-500.0,0.00016438,2]
[338571184,1726740641945,-500.0,0.00016438,2]
[338571185,1726740641958,-784.55,0.00016438,2]
[338571186,1726740641968,-500.0,0.00016438,2]
[338571187,1726740641978,-568.37636911,0.00016438,2]
[338571188,1726740641987,-677.29,0.00016438,2]
[338571189,1726740641997,-500.0,0.00016438,2]
[338571190,1726740642006,-500.0,0.00016438,2]
[338571191,1726740642015,-1770.58,0.00016438,2]
[338571192,1726740642024,-500.0,0.00016438,2]
[338571193,1726740642033,-500.0,0.00016438,2]
[338571194,1726740642042,-1715.13,0.00016438,2]
[338571195,1726740642052,-500.0,0.00016438,2]
[338571196,1726740642062,-2852.1,0.00016438,2]
[338571197,1726740642072,-672.47,0.00016438,2]
[338571198,1726740642081,-500.0,0.00016438,2]
[338571199,1726740642090,-500.0,0.00016438,2]
[338571200,1726740642099,-500.0,0.00016438,2]
[338571201,1726740642109,-500.0,0.00016438,2]